[Event "Chinese Championship-B Women 2024"]
[Site "Liaocheng"]
[Date "2024.04.24"]
[Round "6.7"]
[White "Li, Hanyu(Bj)"]
[Black "Ren, Xiaoyi"]
[Result "0-1"]
[WhiteElo "1553"]
[BlackElo "2075"]
[PlyCount "98"]
[EventDate "2024.04.24"]
[EventType "swiss"]
[EventCountry "CHN"]
[TimeControl "5400+30"]

1. d4 {[%emt 0:00:03]} Nf6 {[%emt 0:12:06]} 2. c4 {[%emt 0:00:07]} g6 {[%emt 0:00:04]} 3. Nc3 {[%emt 0:00:06]} d5 {[%emt 0:00:03]} 4. cxd5 {[%emt 0:00:20]} Nxd5 {[%emt 0:00:05]} 5. e4 {[%emt 0:00:07]} Nxc3 {[%emt 0:00:03]} 6. bxc3 {[%emt 0:00:02]} Bg7 {[%emt 0:00:05]} 7. Bc4 {[%emt 0:00:09]} c5 {[%emt 0:00:27]} 8. Ne2 {[%emt 0:00:25]} Nc6 {[%emt 0:00:51]} 9. Be3 {[%emt 0:00:10]} O-O {[%emt 0:00:07]} 10. O-O {[%emt 0:00:14]} Na5 {[%emt 0:00:51]} 11. Bd3 {[%emt 0:01:39]} c4 {[%emt 0:03:59]} 12. Bc2 {[%emt 0:00:10]} Nc6 {[%emt 0:02:11]} 13. Rb1 {[%emt 0:01:11]} b6 {[%emt 0:03:20]} 14. Ng3 {[%emt 0:03:07]} e6 {[%emt 0:00:23]} 15. Qe2 {[%emt 0:02:56]} Ba6 {[%emt 0:00:57]} 16. Ba4 {[%emt 0:03:32]} Rc8 {[%emt 0:00:19]} 17. Rfd1 {[%emt 0:04:12]} Qd6 {[%emt 0:04:25]} 18. Bc1 {[%emt 0:05:27]} Ne7 {[%emt 0:07:22]} 19. Bb5 {[%emt 0:09:24]} Bxb5 {[%emt 0:00:42]} 20. Rxb5 {[%emt 0:00:04]} a6 {[%emt 0:01:04]} 21. Rb1 {[%emt 0:01:01]} f5 {[%emt 0:00:23]} 22. e5 {[%emt 0:02:30]} Qc6 {[%emt 0:01:15]} 23. Ba3 {[%emt 0:05:37]} Rf7 {[%emt 0:00:33]} 24. Bxe7 {[%emt 0:01:24]} Rxe7 {[%emt 0:00:05]} 25. f3 {[%emt 0:01:35]} b5 {[%emt 0:00:11]} 26. Nf1 {[%emt 0:02:15]} Rb7 {[%emt 0:02:47]} 27. Ne3 {[%emt 0:01:05]} Bh6 {[%emt 0:00:40]} 28. Nc2 {[%emt 0:01:14]} a5 {[%emt 0:00:06]} 29. a3 {[%emt 0:00:43]} Bf8 {[%emt 0:00:28]} 30. Qd2 {[%emt 0:01:30]} Rcb8 {[%emt 0:03:16]} 31. h4 {[%emt 0:07:51]} Be7 {[%emt 0:06:40]} 32. Qe1 {[%emt 0:02:36]} Kh8 {[%emt 0:03:27]} 33. Kh2 {[%emt 0:02:56]} g5 {[%emt 0:00:33]} 34. h5 {[%emt 0:01:58]} Rg8 {[%emt 0:00:34]} 35. Qg3 {[%emt 0:04:44]} Qe8 {[%emt 0:01:11]} 36. d5 {[%emt 0:02:13]} g4 {[%emt 0:02:34]} 37. Kg1 {[%emt 0:07:09]} Qxh5 {[%emt 0:07:10]} 38. Qh2 {[%emt 0:03:06]} Bh4 {[%emt 0:07:07]} 39. Kh1 {[%emt 0:05:02]} gxf3 {[%emt 0:00:41]} 40. Ne1 {[%emt 0:01:04]} fxg2+ {[%emt 0:04:17]} 41. Nxg2 {[%emt 0:00:57]} Rxg2 {[%emt 0:01:28]} 42. Qxg2 {[%emt 0:02:27]} Rg7 {[%emt 0:00:07]} 43. Qxg7+ {[%emt 0:03:31]} Kxg7 {[%emt 0:00:03]} 44. Rg1+ {[%emt 0:00:26]} Kf7 {[%emt 0:00:08]} 45. Rg2 {[%emt 0:00:57]} exd5 {[%emt 0:01:52]} 46. Kg1 {[%emt 0:00:32]} f4 {[%emt 0:00:44]} 47. Rbb2 {[%emt 0:01:16]} Qd1+ {[%emt 0:00:43]} 48. Kh2 {[%emt 0:00:07]} Bg3+ {[%emt 0:00:05]} 49. Kh3 {[%emt 0:00:10]} Qh5# {[%emt 0:00:05]} 0-1

[Event "Chinese Championship-B Women 2024"]
[Site "Liaocheng"]
[Date "2024.04.24"]
[Round "6.8"]
[White "Zhao, Yunqing"]
[Black "Mu, Wangxueyao"]
[Result "1-0"]
[WhiteElo "1965"]
[BlackElo "1738"]
[PlyCount "103"]
[EventDate "2024.04.24"]
[EventType "swiss"]
[EventCountry "CHN"]
[TimeControl "5400+30"]

1. d4 {[%emt 0:00:02]} d5 {[%emt 0:05:53]} 2. Nf3 {[%emt 0:00:16]} Nf6 {[%emt 0:00:16]} 3. c4 {[%emt 0:00:40]} e6 {[%emt 0:00:03]} 4. g3 {[%emt 0:00:06]} c5 {[%emt 0:00:03]} 5. Bg2 {[%emt 0:00:32]} Nc6 {[%emt 0:00:05]} 6. O-O {[%emt 0:00:29]} Be7 {[%emt 0:00:03]} 7. cxd5 {[%emt 0:00:29]} exd5 {[%emt 0:00:04]} 8. dxc5 {[%emt 0:00:09]} Bxc5 {[%emt 0:00:14]} 9. Nc3 {[%emt 0:00:43]} O-O {[%emt 0:00:08]} 10. Bg5 {[%emt 0:00:39]} d4 {[%emt 0:00:17]} 11. Bxf6 {[%emt 0:02:46]} Qxf6 {[%emt 0:00:03]} 12. Nd5 {[%emt 0:00:06]} Qd8 {[%emt 0:00:17]} 13. Nd2 {[%emt 0:00:15]} Bg4 {[%emt 0:16:57]} 14. Nb3 {[%emt 0:14:12]} Bb6 {[%emt 0:06:07]} 15. Re1 {[%emt 0:07:21]} Be6 {[%emt 0:17:53]} 16. Nf4 {[%emt 0:04:47]} Rc8 {[%emt 0:08:40]} 17. Nxe6 {[%emt 0:09:50]} fxe6 {[%emt 0:03:01]} 18. Bxc6 {[%emt 0:00:22]} Rxc6 {[%emt 0:01:27]} 19. Qd3 {[%emt 0:00:40]} Qd5 {[%emt 0:01:22]} 20. Rec1 {[%emt 0:07:51]} Rfc8 {[%emt 0:03:29]} 21. f3 {[%emt 0:06:28]} Qf5 {[%emt 0:06:53]} 22. Rxc6 {[%emt 0:06:27]} Rxc6 {[%emt 0:01:09]} 23. Rc1 {[%emt 0:00:24]} Qxd3 {[%emt 0:02:58]} 24. exd3 {[%emt 0:00:08]} Rxc1+ {[%emt 0:00:36]} 25. Nxc1 {[%emt 0:00:05]} e5 {[%emt 0:00:28]} 26. Kg2 {[%emt 0:03:41]} Kf7 {[%emt 0:00:13]} 27. f4 {[%emt 0:04:39]} Ke6 {[%emt 0:01:03]} 28. Kf3 {[%emt 0:00:42]} Kd5 {[%emt 0:07:53]} 29. f5 {[%emt 0:06:55]} h5 {[%emt 0:03:47]} 30. Nb3 {[%emt 0:01:17]} Bd8 {[%emt 0:02:16]} 31. Nd2 {[%emt 0:01:00]} b5 {[%emt 0:01:55]} 32. Ne4 {[%emt 0:00:44]} a5 {[%emt 0:01:18]} 33. g4 {[%emt 0:03:55]} hxg4+ {[%emt 0:01:59]} 34. Kxg4 {[%emt 0:00:06]} a4 {[%emt 0:02:46]} 35. Kh5 {[%emt 0:00:55]} b4 {[%emt 0:03:23]} 36. b3 {[%emt 0:00:54]} axb3 {[%emt 0:03:31]} 37. axb3 {[%emt 0:00:05]} Be7 {[%emt 0:00:00]} 38. Kg6 {[%emt 0:00:37]} Bf6 {[%emt 0:00:00]} 39. h4 {[%emt 0:04:30]} Bxh4 {[%emt 0:00:00]} 40. Kxg7 {[%emt 0:00:04]} Bd8 {[%emt 0:00:05]} 41. f6 {[%emt 0:01:10]} Ke6 {[%emt 0:00:11]} 42. f7 {[%emt 0:00:04]} Be7 {[%emt 0:00:03]} 43. f8=Q {[%emt 0:00:50]} Bxf8+ {[%emt 0:03:11]} 44. Kxf8 {[%emt 0:00:05]} Kf5 {[%emt 0:00:00]} 45. Ke7 {[%emt 0:00:10]} Kf4 {[%emt 0:01:00]} 46. Kd6 {[%emt 0:00:35]} Ke3 {[%emt 0:00:00]} 47. Nc5 {[%emt 0:00:24]} e4 {[%emt 0:00:00]} 48. dxe4 {[%emt 0:00:24]} d3 {[%emt 0:00:00]} 49. Nxd3 {[%emt 0:00:04]} Kxd3 {[%emt 0:00:00]} 50. e5 {[%emt 0:00:09]} Kc3 {[%emt 0:00:00]} 51. e6 {[%emt 0:00:02]} Kxb3 {[%emt 0:00:00]} 52. e7 {[%emt 0:00:03]} 1-0

[Event "Chinese Championship-B Women 2024"]
[Site "Liaocheng"]
[Date "2024.04.24"]
[Round "6.9"]
[White "Guo, Weibao"]
[Black "Wang, Yi(Bj)"]
[Result "1/2-1/2"]
[WhiteElo "1954"]
[BlackElo "1782"]
[PlyCount "60"]
[EventDate "2024.04.24"]
[EventType "swiss"]
[EventCountry "CHN"]
[TimeControl "5400+30"]

1. d4 {[%emt 0:00:02]} d5 {[%emt 0:00:01]} 2. c4 {[%emt 0:00:05]} c6 {[%emt 0:00:04]} 3. cxd5 {[%emt 0:02:13]} cxd5 {[%emt 0:00:13]} 4. Nc3 {[%emt 0:00:13]} Nf6 {[%emt 0:00:18]} 5. Bf4 {[%emt 0:00:03]} Nc6 {[%emt 0:03:56]} 6. e3 {[%emt 0:01:09]} a6 {[%emt 0:02:54]} 7. Bd3 {[%emt 0:01:13]} Bg4 {[%emt 0:00:36]} 8. Nge2 {[%emt 0:00:03]} e6 {[%emt 0:00:05]} 9. f3 {[%emt 0:01:57]} Bh5 {[%emt 0:00:34]} 10. O-O {[%emt 0:01:24]} Bd6 {[%emt 0:07:47]} 11. Rc1 {[%emt 0:18:27]} O-O {[%emt 0:01:21]} 12. Na4 {[%emt 0:02:45]} Bg6 {[%emt 0:09:40]} 13. Nc5 {[%emt 0:12:36]} Bxc5 {[%emt 0:02:49]} 14. Rxc5 {[%emt 0:00:55]} Nh5 {[%emt 0:13:03]} 15. Bg3 {[%emt 0:06:01]} Nxg3 {[%emt 0:00:30]} 16. Nxg3 {[%emt 0:00:30]} Qd6 {[%emt 0:00:30]} 17. Bxg6 {[%emt 0:00:30]} hxg6 {[%emt 0:01:53]} 18. Qd3 {[%emt 0:04:45]} Rfc8 {[%emt 0:03:45]} 19. Rfc1 {[%emt 0:01:20]} Ne7 {[%emt 0:01:33]} 20. Rxc8+ {[%emt 0:04:37]} Rxc8 {[%emt 0:00:05]} 21. Rxc8+ {[%emt 0:00:06]} Nxc8 {[%emt 0:00:02]} 22. Qc3 {[%emt 0:00:26]} Ne7 {[%emt 0:00:16]} 23. Nf1 {[%emt 0:01:01]} Qc6 {[%emt 0:00:33]} 24. Qxc6 {[%emt 0:00:10]} Nxc6 {[%emt 0:00:02]} 25. Nd2 {[%emt 0:00:27]} Kf8 {[%emt 0:00:18]} 26. Kf2 {[%emt 0:00:04]} Ke7 {[%emt 0:00:06]} 27. Ke2 {[%emt 0:00:39]} Kd6 {[%emt 0:01:55]} 28. a3 {[%emt 0:00:10]} g5 {[%emt 0:01:48]} 29. g3 {[%emt 0:01:21]} b6 {[%emt 0:01:00]} 30. Kd3 {[%emt 0:00:59]} f6 {[%emt 0:01:27]} 1/2-1/2

[Event "Chinese Championship-B Women 2024"]
[Site "Liaocheng"]
[Date "2024.04.24"]
[Round "6.10"]
[White "Li, Peishan"]
[Black "Men, Jiayi"]
[Result "1/2-1/2"]
[WhiteElo "1647"]
[BlackElo "1845"]
[PlyCount "60"]
[EventDate "2024.04.24"]
[EventType "swiss"]
[EventCountry "CHN"]
[TimeControl "5400+30"]

1. e4 {[%emt 0:00:03]} d6 {[%emt 0:00:54]} 2. d4 {[%emt 1:31:27]} Nf6 {[%emt 1:30:36]} 3. Nc3 {[%emt 0:00:30]} g6 {[%emt 0:00:30]} 4. Nf3 {[%emt 0:00:30]} Bg7 {[%emt 0:00:30]} 5. Be2 {[%emt 0:00:00]} c6 6. a4 {[%emt 0:00:00]} O-O 7. O-O {[%emt 0:01:30]} Bg4 {[%emt 0:00:00]} 8. Be3 {[%emt 0:00:00]} Bxf3 {[%emt 0:00:00]} 9. Bxf3 {[%emt 0:00:00]} e5 {[%emt 0:00:00]} 10. dxe5 {[%emt 0:00:00]} dxe5 {[%emt 0:00:00]} 11. Bc5 {[%emt 0:00:00]} Re8 {[%emt 0:00:00]} 12. Qe2 {[%emt 0:00:00]} Nbd7 {[%emt 0:00:00]} 13. Rfd1 {[%emt 0:00:00]} Qc8 {[%emt 0:00:00]} 14. Bd6 {[%emt 0:00:00]} Bf8 {[%emt 0:00:00]} 15. g3 {[%emt 0:00:00]} Re6 {[%emt 0:00:00]} 16. Bxf8 {[%emt 0:00:00]} Qxf8 {[%emt 0:00:00]} 17. Bg4 {[%emt 0:00:00]} Rd6 {[%emt 0:00:00]} 18. Rxd6 {[%emt 0:00:00]} Qxd6 {[%emt 0:00:00]} 19. Rd1 {[%emt 0:00:00]} Qe7 {[%emt 0:00:00]} 20. Bh3 {[%emt 0:00:00]} Nc5 {[%emt 0:00:00]} 21. Qc4 {[%emt 0:00:00]} a5 {[%emt 0:00:00]} 22. b4 axb4 {[%emt 0:00:00]} 23. Qxb4 {[%emt 0:00:00]} Kf8 {[%emt 0:00:00]} 24. Qc4 {[%emt 0:00:00]} Na6 {[%emt 0:00:00]} 25. Qb3 {[%emt 0:00:00]} Nc5 {[%emt 0:00:00]} 26. Qc4 {[%emt 0:00:00]} Na6 {[%emt 0:00:00]} 27. Qb3 {[%emt 0:00:00]} Nc5 {[%emt 0:00:00]} 28. Qc4 {[%emt 0:00:00]} Na6 {[%emt 0:00:00]} 29. Qb3 {[%emt 0:00:00]} Nc5 {[%emt 0:00:00]} 30. Qc4 {[%emt 0:00:00]} Na6 {[%emt 0:00:00]} 1/2-1/2

[Event "Chinese Championship-B Women 2024"]
[Site "Liaocheng"]
[Date "2024.04.24"]
[Round "6.11"]
[White "Chu, Ruotong"]
[Black "Wu, Yiting"]
[Result "1-0"]
[WhiteElo "2124"]
[BlackElo "1721"]
[PlyCount "103"]
[EventDate "2024.04.24"]
[EventType "swiss"]
[EventCountry "CHN"]
[TimeControl "5400+30"]

1. d4 {[%emt 0:11:45]} d5 {[%emt 0:00:09]} 2. c4 {[%emt 0:00:04]} e6 {[%emt 0:00:08]} 3. Nf3 {[%emt 0:00:13]} Nf6 {[%emt 0:00:07]} 4. g3 {[%emt 0:00:09]} Be7 {[%emt 0:00:23]} 5. Bg2 {[%emt 0:00:09]} O-O {[%emt 0:00:15]} 6. O-O {[%emt 0:00:30]} c6 {[%emt 0:00:42]} 7. Nc3 {[%emt 0:00:36]} Nbd7 {[%emt 0:00:15]} 8. Qd3 {[%emt 0:00:08]} b6 {[%emt 0:02:46]} 9. e4 {[%emt 0:10:40]} dxe4 {[%emt 0:01:46]} 10. Nxe4 {[%emt 0:00:12]} Bb7 {[%emt 0:06:54]} 11. Nxf6+ {[%emt 0:04:20]} Nxf6 {[%emt 0:06:03]} 12. Ne5 {[%emt 0:00:05]} Qc7 {[%emt 0:07:34]} 13. Qf3 {[%emt 0:02:01]} Rac8 {[%emt 0:01:36]} 14. Bf4 {[%emt 0:00:50]} Bd6 {[%emt 0:02:26]} 15. b4 {[%emt 0:03:40]} Nd7 {[%emt 0:10:31]} 16. Nxd7 Qxd7 {[%emt 0:00:11]} 17. c5 {[%emt 0:21:00]} Bxf4 18. Qxf4 {[%emt 0:00:02]} Ba6 {[%emt 0:04:02]} 19. Rfc1 {[%emt 0:02:49]} Rfd8 {[%emt 0:00:52]} 20. cxb6 {[%emt 0:02:37]} axb6 {[%emt 0:00:40]} 21. a4 {[%emt 0:00:03]} h6 {[%emt 0:07:41]} 22. Rab1 {[%emt 0:04:03]} Qxd4 {[%emt 0:04:42]} 23. Qxd4 {[%emt 0:01:35]} Rxd4 {[%emt 0:00:01]} 24. Rxc6 {[%emt 0:00:30]} Rxc6 {[%emt 0:03:44]} 25. Bxc6 {[%emt 0:00:07]} Bc4 {[%emt 0:06:21]} 26. a5 {[%emt 0:02:32]} bxa5 {[%emt 0:01:24]} 27. bxa5 {[%emt 0:02:01]} Bd5 {[%emt 0:03:18]} 28. Bxd5 {[%emt 0:06:07]} Rxd5 {[%emt 0:01:48]} 29. Ra1 {[%emt 0:00:12]} Rd7 {[%emt 0:00:19]} 30. Kg2 {[%emt 0:01:09]} Kf8 {[%emt 0:00:30]} 31. Kf3 {[%emt 0:00:37]} Ke7 {[%emt 0:00:37]} 32. Ke4 {[%emt 0:00:27]} f5+ {[%emt 0:04:07]} 33. Ke3 {[%emt 0:01:20]} e5 {[%emt 0:02:06]} 34. a6 {[%emt 0:04:27]} Ra7 {[%emt 0:00:09]} 35. f4 {[%emt 0:01:21]} exf4+ {[%emt 0:02:14]} 36. Kxf4 {[%emt 0:01:34]} Ke6 {[%emt 0:02:00]} 37. Ra5 {[%emt 0:00:42]} g6 {[%emt 0:01:54]} 38. Ke3 {[%emt 0:01:29]} Kd6 {[%emt 0:04:38]} 39. Kd4 {[%emt 0:00:13]} Kc6 {[%emt 0:03:42]} 40. Ke5 {[%emt 0:00:07]} h5 {[%emt 0:07:06]} 41. Kf6 {[%emt 0:01:05]} h4 {[%emt 0:01:26]} 42. Kxg6 {[%emt 0:00:14]} hxg3 {[%emt 0:00:34]} 43. hxg3 {[%emt 0:00:05]} Kd7 {[%emt 0:02:32]} 44. Kxf5 {[%emt 0:00:11]} Ke7 {[%emt 0:00:15]} 45. Ke5 {[%emt 0:00:06]} Kd7 {[%emt 0:00:22]} 46. Ra3 {[%emt 0:00:19]} Ke7 {[%emt 0:00:13]} 47. g4 {[%emt 0:00:15]} Kd7 {[%emt 0:00:43]} 48. Kd5 {[%emt 0:00:04]} Kc7 {[%emt 0:00:46]} 49. g5 {[%emt 0:00:27]} Ra8 {[%emt 0:00:40]} 50. a7 {[%emt 0:00:07]} Kd7 {[%emt 0:00:23]} 51. g6 {[%emt 0:00:18]} Kc7 {[%emt 0:00:18]} 52. Ke6 {[%emt 0:00:11]} 1-0

[Event "Chinese Championship-B Women 2024"]
[Site "Liaocheng"]
[Date "2024.04.24"]
[Round "6.12"]
[White "Ji, Yueran"]
[Black "Du, Yuxin"]
[Result "0-1"]
[WhiteElo "1660"]
[BlackElo "1960"]
[PlyCount "134"]
[EventDate "2024.04.24"]
[EventType "swiss"]
[EventCountry "CHN"]
[TimeControl "5400+30"]

1. e4 {[%emt 0:00:03]} c6 {[%emt 0:00:14]} 2. d4 {[%emt 0:00:19]} d5 {[%emt 0:00:07]} 3. exd5 {[%emt 0:00:11]} cxd5 {[%emt 0:00:06]} 4. c4 {[%emt 0:00:09]} Nf6 {[%emt 0:00:10]} 5. Nc3 {[%emt 0:00:11]} e6 {[%emt 0:00:21]} 6. Nf3 {[%emt 0:00:33]} Nc6 {[%emt 0:00:23]} 7. c5 {[%emt 0:00:10]} Ne4 {[%emt 0:01:44]} 8. Bb5 {[%emt 0:03:31]} Nxc3 {[%emt 0:07:44]} 9. bxc3 {[%emt 0:01:56]} Bd7 {[%emt 0:00:24]} 10. O-O {[%emt 0:01:29]} Be7 {[%emt 0:03:38]} 11. Bf4 {[%emt 0:02:58]} O-O {[%emt 0:00:41]} 12. Re1 {[%emt 0:01:46]} b6 {[%emt 0:04:49]} 13. Bxc6 {[%emt 0:02:06]} Bxc6 {[%emt 0:00:05]} 14. Ne5 {[%emt 0:00:34]} Be8 {[%emt 0:01:02]} 15. c6 {[%emt 0:10:13]} Bd6 {[%emt 0:07:50]} 16. Qg4 {[%emt 0:06:11]} Qc7 {[%emt 0:09:24]} 17. Re3 {[%emt 0:07:06]} Bxc6 {[%emt 0:18:52]} 18. Bh6 {[%emt 0:03:35]} f5 {[%emt 0:14:03]} 19. Qxg7+ {[%emt 0:01:36]} Qxg7 {[%emt 0:00:05]} 20. Bxg7 {[%emt 0:00:06]} Kxg7 {[%emt 0:00:06]} 21. Nxc6 {[%emt 0:00:16]} Rfc8 {[%emt 0:01:32]} 22. Ne5 {[%emt 0:05:27]} f4 {[%emt 0:00:44]} 23. Rf3 {[%emt 0:02:49]} Bxe5 {[%emt 0:00:09]} 24. dxe5 {[%emt 0:00:06]} Rc4 {[%emt 0:00:17]} 25. g3 {[%emt 0:02:18]} Rf8 {[%emt 0:15:41]} 26. Kf1 {[%emt 0:06:44]} Kg6 {[%emt 0:03:13]} 27. Rd1 {[%emt 0:08:33]} Kf5 {[%emt 0:01:58]} 28. Rd4 {[%emt 0:04:47]} Rxd4 {[%emt 0:01:56]} 29. cxd4 {[%emt 0:00:14]} Ke4 {[%emt 0:00:38]} 30. Ke2 {[%emt 0:03:26]} Kxd4 {[%emt 0:01:03]} 31. gxf4 {[%emt 0:02:30]} Rf5 {[%emt 0:02:45]} 32. Ra3 {[%emt 0:02:09]} Rxf4 {[%emt 0:01:07]} 33. Rxa7 {[%emt 0:02:30]} Kxe5 {[%emt 0:01:45]} 34. Rxh7 {[%emt 0:01:50]} Ra4 {[%emt 0:00:06]} 35. h4 {[%emt 0:01:27]} Rxa2+ {[%emt 0:00:10]} 36. Kf3 {[%emt 0:00:28]} b5 {[%emt 0:02:13]} 37. Rb7 {[%emt 0:01:07]} Ra4 {[%emt 0:01:01]} 38. h5 {[%emt 0:02:14]} Rh4 {[%emt 0:00:10]} 39. Rxb5 {[%emt 0:00:19]} Rxh5 {[%emt 0:00:05]} 40. Rb4 {[%emt 0:00:35]} Rh3+ {[%emt 0:00:32]} 41. Ke2 {[%emt 0:00:46]} Ra3 {[%emt 0:00:23]} 42. Rh4 {[%emt 0:03:08]} Kd6 {[%emt 0:00:54]} 43. Rh6 {[%emt 0:01:05]} d4 {[%emt 0:00:11]} 44. f4 {[%emt 0:00:57]} Kd5 {[%emt 0:00:21]} 45. Rf6 {[%emt 0:02:41]} Re3+ {[%emt 0:00:26]} 46. Kd2 {[%emt 0:00:25]} Rh3 {[%emt 0:00:40]} 47. Rg6 {[%emt 0:00:55]} Rf3 {[%emt 0:01:05]} 48. Rg4 {[%emt 0:01:11]} Kc4 {[%emt 0:00:38]} 49. Rg6 {[%emt 0:01:46]} Rf2+ {[%emt 0:00:47]} 50. Ke1 {[%emt 0:00:29]} Rxf4 {[%emt 0:00:09]} 51. Rxe6 {[%emt 0:00:05]} Kd3 {[%emt 0:00:40]} 52. Rh6 {[%emt 0:01:09]} Rf3 {[%emt 0:00:37]} 53. Rh8 {[%emt 0:00:48]} Re3+ {[%emt 0:00:15]} 54. Kd1 {[%emt 0:00:21]} Rg3 {[%emt 0:00:22]} 55. Ke1 {[%emt 0:00:45]} Kc2 {[%emt 0:00:56]} 56. Rh2+ {[%emt 0:00:59]} Kc3 {[%emt 0:00:39]} 57. Rh8 {[%emt 0:00:58]} Rg1+ {[%emt 0:00:19]} 58. Kf2 {[%emt 0:00:29]} Ra1 {[%emt 0:00:16]} 59. Rc8+ {[%emt 0:00:25]} Kd2 {[%emt 0:00:16]} 60. Kf3 {[%emt 0:01:16]} d3 {[%emt 0:00:14]} 61. Rh8 {[%emt 0:02:13]} Rf1+ {[%emt 0:00:06]} 62. Kg2 {[%emt 0:00:52]} Rf5 {[%emt 0:00:38]} 63. Kg3 {[%emt 0:00:34]} Kc2 {[%emt 0:00:45]} 64. Rc8+ {[%emt 0:02:05]} Kd1 {[%emt 0:00:14]} 65. Kg4 {[%emt 0:00:49]} Rf1 {[%emt 0:00:42]} 66. Rd8 {[%emt 0:00:45]} d2 {[%emt 0:00:09]} 67. Rc8 {[%emt 0:00:14]} Ke2 {[%emt 0:00:16]} 0-1

[Event "Chinese Championship-B Women 2024"]
[Site "Liaocheng"]
[Date "2024.04.24"]
[Round "6.13"]
[White "Zhou, Lanqier"]
[Black "Gao, Muziyan"]
[Result "1/2-1/2"]
[WhiteElo "1654"]
[BlackElo "1891"]
[PlyCount "213"]
[EventDate "2024.04.24"]
[EventType "swiss"]
[EventCountry "CHN"]
[TimeControl "5400+30"]

1. d4 {[%emt 1:31:00]} Nf6 {[%emt 0:00:13]} 2. c4 {[%emt 0:00:00]} e6 {[%emt 0:02:01]} 3. Nf3 {[%emt 0:00:00]} d5 {[%emt 0:02:01]} 4. Nc3 {[%emt 0:00:00]} Bb4 {[%emt 0:00:40]} 5. Bg5 {[%emt 0:00:00]} h6 {[%emt 0:02:02]} 6. Bxf6 Qxf6 7. e3 {[%emt 0:00:00]} O-O {[%emt 1:27:03]} 8. Rc1 {[%emt 0:00:00]} dxc4 {[%emt 0:00:00]} 9. Bxc4 {[%emt 0:00:00]} c5 10. O-O {[%emt 0:00:00]} cxd4 11. Nxd4 {[%emt 0:00:00]} Rd8 12. Qe2 {[%emt 0:00:00]} Bd7 {[%emt 0:00:00]} 13. Ne4 Qh4 {[%emt 0:00:00]} 14. Ng3 Nc6 {[%emt 0:03:30]} 15. Nf3 {[%emt 0:00:00]} Qe7 {[%emt 0:00:00]} 16. Rfd1 {[%emt 0:00:00]} Be8 {[%emt 0:00:00]} 17. Rxd8 Rxd8 18. Rd1 {[%emt 0:00:00]} Rxd1+ {[%emt 0:00:00]} 19. Qxd1 {[%emt 0:00:00]} Qc5 {[%emt 0:00:00]} 20. Bf1 {[%emt 0:00:00]} Qa5 {[%emt 0:00:00]} 21. Qb3 {[%emt 0:10:00]} Qc7 {[%emt 0:03:30]} 22. Nd4 {[%emt 0:00:00]} Be7 {[%emt 0:00:00]} 23. Nxc6 {[%emt 0:00:00]} Bxc6 {[%emt 0:00:00]} 24. Ne2 {[%emt 0:00:00]} Bd6 {[%emt 0:00:00]} 25. h3 {[%emt 0:00:00]} Bh2+ {[%emt 0:00:00]} 26. Kh1 {[%emt 0:00:00]} Be5 {[%emt 0:00:00]} 27. Nc3 {[%emt 0:00:00]} Qd7 {[%emt 0:00:00]} 28. Qd1 {[%emt 0:03:30]} Qe7 {[%emt 0:03:30]} 29. Qc2 {[%emt 0:00:00]} h5 {[%emt 0:00:00]} 30. Bd3 {[%emt 0:00:00]} Qb4 {[%emt 0:01:00]} 31. Kg1 {[%emt 0:01:30]} Bc7 {[%emt 0:00:30]} 32. Qe2 {[%emt 0:00:30]} Qd6 {[%emt 0:00:00]} 33. f4 {[%emt 0:00:30]} e5 {[%emt 0:00:00]} 34. Nb5 {[%emt 0:00:00]} Bxb5 {[%emt 0:00:00]} 35. Bxb5 {[%emt 0:00:00]} exf4 36. exf4 Qxf4 {[%emt 0:00:00]} 37. Bd3 {[%emt 0:01:23]} g6 {[%emt 0:00:00]} 38. b3 {[%emt 0:00:15]} h4 {[%emt 0:00:00]} 39. Qf3 {[%emt 0:00:18]} Qh2+ {[%emt 0:04:00]} 40. Kf1 Bg3 {[%emt 0:00:00]} 41. Qe3 {[%emt 0:01:18]} Bf4 {[%emt 0:00:20]} 42. Qf2 {[%emt 0:00:17]} b6 {[%emt 0:00:33]} 43. a4 Kg7 {[%emt 0:00:30]} 44. Bc4 {[%emt 0:00:55]} f6 {[%emt 0:00:30]} 45. Bd3 {[%emt 0:00:30]} Bd6 {[%emt 0:00:30]} 46. Qf3 {[%emt 0:01:34]} Bc5 {[%emt 0:00:34]} 47. Ke2 {[%emt 0:00:00]} Qe5+ {[%emt 0:00:30]} 48. Qe4 {[%emt 0:00:27]} Qb2+ {[%emt 0:00:30]} 49. Bc2 {[%emt 0:00:30]} f5 {[%emt 0:00:30]} 50. Qd3 {[%emt 0:00:30]} Qe5+ {[%emt 0:00:30]} 51. Kf1 {[%emt 0:00:24]} Bb4 {[%emt 0:00:29]} 52. Qe2 {[%emt 0:00:14]} Qh2 {[%emt 0:00:33]} 53. Qf2 {[%emt 0:00:29]} Bc5 {[%emt 0:01:01]} 54. Qf3 Qg1+ {[%emt 0:00:00]} 55. Ke2 {[%emt 0:00:11]} Bb4 {[%emt 0:01:00]} 56. Qf1 {[%emt 0:00:00]} Qd4 {[%emt 0:00:00]} 57. Qd1 {[%emt 0:00:00]} Qe5+ {[%emt 0:00:19]} 58. Kf1 {[%emt 0:00:00]} Bc5 {[%emt 0:00:30]} 59. Qe2 {[%emt 0:00:00]} Qd4 {[%emt 0:00:30]} 60. Qf3 {[%emt 0:00:27]} Qd2 {[%emt 0:00:30]} 61. Qe2 {[%emt 0:00:30]} Qd4 {[%emt 0:00:30]} 62. Qf3 {[%emt 0:00:30]} Qg1+ {[%emt 0:00:30]} 63. Ke2 {[%emt 0:00:30]} Bb4 {[%emt 0:00:30]} 64. Qf1 {[%emt 0:00:30]} Qd4 {[%emt 0:00:27]} 65. Qd1 {[%emt 0:00:30]} Qf4 {[%emt 0:00:30]} 66. Qd3 {[%emt 0:00:32]} Qe5+ {[%emt 0:00:32]} 67. Qe3 {[%emt 0:00:37]} Qa1 {[%emt 0:00:30]} 68. Bd1 {[%emt 0:00:30]} Qb2+ {[%emt 0:00:30]} 69. Kf1 {[%emt 0:00:37]} Bc5 {[%emt 0:01:12]} 70. Qe2 Qd4 {[%emt 0:00:00]} 71. Qf3 {[%emt 0:01:07]} a5 {[%emt 0:00:27]} 72. Ke1 {[%emt 0:00:06]} Qe5+ {[%emt 0:00:30]} 73. Kf1 {[%emt 0:00:30]} Qd4 {[%emt 0:00:25]} 74. Ke1 {[%emt 0:00:30]} Bb4+ {[%emt 0:00:35]} 75. Kf1 {[%emt 0:00:30]} Bd6 {[%emt 0:01:03]} 76. Bc2 {[%emt 0:00:41]} Qd2 {[%emt 0:00:00]} 77. Qd1 {[%emt 0:00:39]} Qf4+ {[%emt 0:00:21]} 78. Qf3 {[%emt 0:00:09]} Qd4 {[%emt 0:00:16]} 79. Qd3 {[%emt 0:00:42]} Qc5 {[%emt 0:00:22]} 80. Bd1 {[%emt 0:04:08]} Bh2 {[%emt 0:00:55]} 81. Qf3 {[%emt 0:00:00]} Qg1+ {[%emt 0:00:23]} 82. Ke2 {[%emt 0:00:00]} Bg3 {[%emt 0:00:30]} 83. Qf1 {[%emt 0:00:00]} Qc5 {[%emt 0:00:30]} 84. Qf3 {[%emt 0:00:00]} Qb4 {[%emt 0:00:26]} 85. Kd3 {[%emt 0:00:00]} Qe1 {[%emt 0:00:09]} 86. Qe2 {[%emt 0:00:05]} Qb4 {[%emt 0:00:30]} 87. Qf3 {[%emt 0:00:30]} Bf4 {[%emt 0:00:30]} 88. Ke2 {[%emt 0:00:30]} Bg3 {[%emt 0:00:30]} 89. Kd3 {[%emt 0:00:30]} b5 {[%emt 0:00:30]} 90. Qb7+ {[%emt 0:00:30]} Kh6 {[%emt 0:00:26]} 91. axb5 {[%emt 0:01:08]} Be1 {[%emt 0:01:06]} 92. Qf3 {[%emt 0:01:53]} Qd2+ {[%emt 0:00:31]} 93. Kc4 {[%emt 0:00:30]} Bf2 {[%emt 0:00:30]} 94. Qd3 {[%emt 0:00:21]} Qb4+ {[%emt 0:00:30]} 95. Kd5 {[%emt 0:00:30]} Qc5+ {[%emt 0:01:05]} 96. Ke6 {[%emt 0:00:03]} Bg3 {[%emt 0:00:30]} 97. Bf3 {[%emt 0:00:29]} Qe5+ {[%emt 0:00:00]} 98. Kd7 {[%emt 0:00:42]} Qc7+ {[%emt 0:01:00]} 99. Ke6 Qe5+ {[%emt 0:00:00]} 100. Kd7 {[%emt 0:00:22]} Qc7+ {[%emt 0:01:00]} 101. Ke6 Qe5+ {[%emt 0:00:00]} 102. Kd7 {[%emt 0:00:00]} Qc7+ {[%emt 0:00:00]} 103. Ke6 {[%emt 0:00:01]} Qe5+ {[%emt 0:00:00]} 104. Kd7 {[%emt 0:00:30]} Qc7+ {[%emt 0:00:00]} 105. Ke6 {[%emt 0:00:30]} Qe5+ {[%emt 0:00:20]} 106. Kd7 {[%emt 0:00:30]} Qc7+ {[%emt 0:00:30]} 107. Ke6 {[%emt 0:00:30]} 1/2-1/2